bitfinex-derivatives/quotes_BNBF0:USTF0_20250116
["timestamp","ask_amount","ask_price","bid_price","bid_amount"]
[1737062389647,0.27960687,715.29,713.82,1.04138678]
[1737062390651,0.27960687,715.29,713.75,1.04138678]
[1737062391848,0.27960687,715.29,713.76,1.04138678]
[1737062394149,0.27960687,715.29,713.74,1.04138678]
[1737062397449,0.27960687,715.29,713.68,1.04138678]
[1737062398748,0.27960687,715.29,713.57,1.04]
[1737062398749,0.27960687,715.29,713.65,1.04138678]
[1737062399753,1.04674399,715.06,713.71,1.04138678]
[1737062401160,1.04674399,715.05,713.71,1.04138678]
[1737062401961,1.04674399,715.01,713.74,1.04138678]
[1737062402161,0.27972027,715.0,713.74,1.04138678]
[1737062404763,0.27972027,715.0,713.63,1.04138678]
[1737062405666,0.27972027,715.0,713.58,1.04138678]
[1737062406562,0.27972027,715.0,713.54,0.28029262]
[1737062406967,0.27972027,715.0,713.54,1.10929262]
[1737062427582,0.27972027,715.0,713.6,1.04138678]
[1737062430487,0.27972027,715.0,713.57,1.04138678]
[1737062431589,0.27972027,715.0,713.6,1.04138678]
[1737062432180,0.27972027,715.0,713.62,1.04138678]
[1737062432379,1.04674399,714.99,713.62,1.04138678]
[1737062432584,0.27973201,714.97,713.62,1.04138678]
[1737062433286,1.04674399,714.96,713.64,1.04138678]
[1737062433484,0.27974375,714.94,713.64,1.04138678]
[1737062434486,0.27974375,714.94,713.63,1.04138678]
[1737062435289,1.04674399,714.91,713.69,1.04138678]
[1737062435492,0.2797594,714.9,713.69,1.04138678]
[1737062436188,1.32650339,714.9,713.68,1.04138678]
[1737062437887,0.2797594,714.9,713.68,1.04138678]
[1737062438297,0.2797594,714.9,713.68,1.94238678]
[1737062438991,0.2797594,714.9,713.68,0.901]
[1737062470626,0.2797594,714.9,713.0,1.04823505]
[1737062471021,0.2797594,714.9,712.97,1.04823505]
[1737062471721,0.2797594,714.9,712.97,1.85823505]
[1737062472327,0.2797594,714.9,712.97,0.81]
[1737062494341,1.04531693,714.83,712.97,0.81]
[1737062495537,0.27979463,714.81,712.97,0.81]
[1737062497841,1.04531693,714.76,712.97,0.81]
[1737062498542,0.27982203,714.74,712.97,0.81]
[1737062498743,1.04531693,714.7,712.97,0.81]
[1737062498941,0.27984552,714.68,712.97,0.81]
[1737062499738,1.04531693,714.67,712.97,0.81]
[1737062499942,0.27985727,714.65,712.97,0.81]
[1737062505341,1.04531693,714.41,712.97,0.81]
[1737062506148,1.04531693,714.22,712.97,0.81]
[1737062507346,1.04531693,714.26,712.97,0.81]
[1737062508850,1.04531693,714.21,712.97,0.81]
[1737062509150,0.28003752,714.19,712.97,0.81]
[1737062546483,1.04531693,714.13,712.97,0.81]
[1737062546783,0.28006889,714.11,712.97,0.81]
[1737062547575,1.04531693,714.08,712.97,0.81]
[1737062547780,0.2800885,714.06,712.97,0.81]
[1737062548378,1.04531693,713.97,712.97,0.81]
[1737062548582,0.28013166,713.95,712.97,0.81]
[1737062552288,1.32544859,713.95,712.97,0.81]
[1737062553491,0.28013166,713.95,712.97,0.81]
[1737062560696,1.04531693,713.92,712.97,0.81]
[1737062560895,0.28015128,713.9,712.97,0.81]
[1737062563597,1.04531693,713.86,712.97,0.81]
[1737062565497,1.04531693,713.89,712.97,0.81]
[1737062566799,0.28015128,713.9,712.97,0.81]
[1737062582412,1.04531693,713.85,712.97,0.81]
[1737062582607,0.28017875,713.83,712.97,0.81]
[1737062601625,1.04531693,713.76,712.97,0.81]
[1737062601823,0.28021015,713.75,712.97,0.81]
[1737062612327,1.04531693,713.72,712.97,0.81]
[1737062612629,0.28022586,713.71,712.97,0.81]
[1737062612824,0.28022586,713.71,712.97,0.03405746]
[1737062613031,0.28022586,713.71,712.05,1.04823505]
[1737062613230,0.28022586,713.71,711.84,1.04823505]
[1737062613231,1.04531693,713.57,712.01,1.04823505]
[1737062613423,0.28028869,713.55,712.01,1.04823505]
[1737062614232,0.28028869,713.55,712.01,1.84423505]
[1737062614435,0.28028869,713.55,712.01,0.796]
[1737062658165,1.04531693,713.39,712.01,0.796]
[1737062658969,0.28035942,713.37,712.01,0.796]
[1737062659370,1.04531693,713.35,712.01,0.796]
[1737062659871,0.28037121,713.34,712.01,0.796]
[1737062663872,1.04531693,713.33,712.01,0.796]
[1737062664068,0.280383,713.31,712.01,0.796]
[1737062667171,1.04531693,713.3,712.01,0.796]
[1737062667370,0.28039479,713.28,712.01,0.796]
[1737062671977,1.04531693,713.26,712.01,0.796]
[1737062672178,0.28041052,713.24,712.01,0.796]
[1737062713603,0.28041052,713.24,712.02,0.28089098]
[1737062713802,1.04531693,714.62,712.02,0.28089098]
[1737062714009,0.27991994,714.49,712.02,0.28089098]
[1737062714612,1.04531693,714.34,712.02,0.28089098]
[1737062715002,1.04531693,714.34,712.02,1.28189098]
[1737062715403,0.27991994,714.49,712.02,1.28189098]
[1737062715404,1.04531693,714.31,712.02,1.28189098]
[1737062715807,1.04531693,714.31,712.03,0.25784862]
[1737062716705,1.04531693,714.07,712.12,1.04823505]
[1737062716911,1.04531693,714.07,712.13,0.25784862]
[1737062717312,0.28009243,714.05,712.14,0.28084365]
[1737062717513,1.04531693,714.03,712.15,0.25784862]
[1737062718012,1.04531693,714.03,712.14,1.3290787]
[1737062718013,1.04531693,713.98,712.14,0.28084365]
[1737062718414,0.28012773,713.96,712.15,0.25786991]
[1737062718914,1.32544466,713.96,712.15,0.25786991]
[1737062720216,0.28012773,713.96,712.16,1.04823505]
[1737062720517,0.28012773,713.96,712.17,0.25786991]
[1737062720913,0.28012773,713.96,712.18,0.25785225]
[1737062721234,0.28012773,713.96,712.19,0.25785225]
[1737062721411,0.28012773,713.96,712.18,0.25785225]
[1737062721620,0.28012773,713.96,712.19,0.2578525]
[1737062721816,0.28012773,713.96,712.2,0.2578525]
[1737062722018,0.28012773,713.96,712.14,0.28084365]
[1737062722019,0.28012773,713.96,712.21,0.2578525]
[1737062722321,0.28012773,713.96,712.22,0.2578525]
[1737062722618,0.28012773,713.96,712.23,0.2578525]
[1737062722818,0.28012773,713.96,712.24,0.2578525]
[1737062723013,1.04531693,713.93,712.25,0.2578525]
[1737062723416,0.28014735,713.91,712.25,0.2578525]
[1737062723718,0.28014735,713.91,712.24,1.04823505]
[1737062723918,0.28014735,713.91,712.25,1.04823505]
[1737062725020,0.28014735,713.91,712.2,1.04823505]
[1737062725219,0.28014735,713.91,712.21,0.25784857]
[1737062726418,0.28014735,713.91,712.22,0.25784889]
[1737062726615,0.28014735,713.91,712.23,0.25784889]
[1737062726919,0.28014735,713.91,712.24,0.25784889]
[1737062727125,0.28014735,713.91,712.17,1.04823505]
[1737062727320,0.28014735,713.91,712.18,0.25784643]
[1737062727720,0.28014735,713.91,712.19,0.25784712]
[1737062727920,0.28014735,713.91,712.17,1.04823505]
[1737062728120,0.28014735,713.91,712.18,0.25784725]
[1737062728822,0.28014735,713.91,712.19,0.25784725]
[1737062729114,0.28014735,713.91,712.12,1.04823505]
[1737062729115,0.28014735,713.91,712.2,0.28081999]
[1737062729719,0.28014735,713.91,712.21,0.25783886]
[1737062730019,0.28014735,713.91,712.22,0.2808121]
[1737062730219,0.28014735,713.91,712.23,0.25783886]
[1737062731319,0.28014735,713.91,712.22,0.2808121]
[1737062732017,0.28014735,713.91,712.23,0.25782987]
[1737062732221,0.28014735,713.91,712.24,0.28080422]
[1737062733222,0.28014735,713.91,712.24,1.34980422]
[1737062733618,0.28014735,713.91,712.25,0.25782619]
[1737062735223,0.28014735,713.91,712.25,1.30606124]
[1737062735523,0.28014735,713.91,712.26,0.25782619]
[1737062736625,0.28014735,713.91,712.27,0.25782619]
[1737062736823,0.28014735,713.91,712.28,0.25782619]
[1737062737018,0.28014735,713.91,712.29,0.25782619]
[1737062737222,0.28014735,713.91,712.3,0.25782619]
[1737062737425,0.28014735,713.91,712.33,1.04823505]
[1737062737624,0.28014735,713.91,712.34,0.25780844]
[1737062738226,0.28014735,713.91,712.35,1.30604624]
[1737062738419,0.28014735,713.91,712.36,0.25781119]
[1737062739425,0.28014735,713.91,712.36,1.30604624]
[1737062739622,0.28014735,713.91,712.37,0.25781119]
[1737062740528,0.28014735,713.91,712.37,1.04823505]
[1737062741119,0.28014735,713.91,712.38,0.25780864]
[1737062741319,0.28014735,713.91,712.35,1.04823505]
[1737062741525,0.28014735,713.91,712.36,0.25781265]
[1737062742021,0.28014735,713.91,712.37,0.25781256]
[1737062742227,0.28014735,713.91,712.36,1.04823505]
[1737062743828,0.28014735,713.91,712.38,1.04823505]
[1737062744926,0.28014735,713.91,712.4,1.04823505]
[1737062745627,0.28014735,713.91,712.41,1.04823505]
[1737062746327,1.04531693,713.89,712.44,1.04823505]
[1737062746527,0.28015913,713.88,712.44,1.04823505]
[1737062747028,0.28015913,713.88,712.5,1.04823505]
[1737062748329,1.04531693,713.74,712.35,1.04823505]
[1737062748529,0.280218,713.73,712.35,1.04823505]
[1737062749129,1.04531693,713.64,712.38,1.04823505]
[1737062749324,0.28025727,713.63,712.38,1.04823505]
[1737062750029,0.28025727,713.63,712.39,1.04823505]
[1737062751131,0.28025727,713.63,712.42,1.04823505]
[1737062752967,0.28025727,713.63,712.4,1.04823505]
[1737062753860,0.28025727,713.63,712.41,1.04823505]
[1737062755453,0.28025727,713.63,712.41,1.85023505]
[1737062756051,0.28025727,713.63,712.41,0.802]
[1737062758542,0.28025727,713.63,712.42,1.04823505]
[1737062759639,0.28025727,713.63,712.41,0.802]
[1737062759640,0.28025727,713.63,712.41,1.85023505]
[1737062760443,0.28025727,713.63,712.41,0.802]
[1737062771143,0.28025727,713.63,712.43,1.04970438]
[1737062772050,0.28025727,713.63,712.46,1.04970438]
[1737062773049,0.28025727,713.63,712.41,0.802]
[1737062773050,0.28025727,713.63,712.57,1.04970438]
[1737062774153,0.28025727,713.63,712.55,1.04970438]
[1737062775252,0.28025727,713.63,712.6,1.04970438]
[1737062776251,0.28025727,713.63,712.57,1.04970438]
[1737062777048,0.28025727,713.63,712.55,1.04970438]
[1737062777953,0.28025727,713.63,712.53,1.04970438]
[1737062779554,0.28025727,713.63,712.41,0.802]
[1737062779555,0.28025727,713.63,712.52,1.04970438]
[1737062780255,0.28025727,713.63,712.51,1.04970438]
[1737062780554,0.28025727,713.63,712.52,0.2577594]
[1737062780753,0.28025727,713.63,712.51,1.04970438]
[1737062780953,0.28025727,713.63,712.52,0.25775375]
[1737062781153,0.28025727,713.63,712.51,0.25775347]
[1737062781353,0.28025727,713.63,712.52,0.25775347]
[1737062781555,0.28025727,713.63,712.5,1.04970438]
[1737062781755,0.28025727,713.63,712.51,0.2577547]
[1737062782356,0.28025727,713.63,712.5,1.04970438]
[1737062782954,0.28025727,713.63,712.48,1.04970438]
[1737062783358,0.28025727,713.63,712.49,0.25775316]
[1737062784057,0.28025727,713.63,712.47,1.04970438]
[1737062785158,0.28025727,713.63,712.43,1.04970438]
[1737062785359,0.28025727,713.63,712.44,0.25777175]
[1737062785552,0.28025727,713.63,712.43,1.04970438]
[1737062785858,0.28025727,713.63,712.44,1.19578719]
[1737062786056,0.28025727,713.63,712.45,0.25778719]
[1737062786452,0.28025727,713.63,712.44,0.938]
[1737062786654,0.28025727,713.63,712.45,0.25777915]
[1737062786850,0.28025727,713.63,712.44,0.938]
[1737062787051,0.28025727,713.63,712.45,0.25777791]
[1737062787255,0.28025727,713.63,712.44,0.938]
[1737062787551,0.28025727,713.63,712.45,0.25777943]
[1737062787756,0.28025727,713.63,712.44,0.938]
[1737062793659,0.28025727,713.63,712.45,0.25777536]
[1737062794263,0.28025727,713.63,712.44,0.938]
[1737062794763,0.28025727,713.63,712.45,1.04970438]
[1737062796157,0.28025727,713.63,712.44,1.98770438]
[1737062797265,0.28025727,713.63,712.46,1.04970438]
[1737062798067,0.28025727,713.63,712.44,0.938]
[1737062801167,0.28025727,713.63,712.44,1.98770438]
[1737062802365,0.28025727,713.63,712.45,1.04970438]
[1737062803671,0.28025727,713.63,712.52,1.04970438]
[1737062804266,0.28025727,713.63,712.53,0.25774576]
[1737062804470,0.28025727,713.63,712.67,1.04970438]
[1737062805772,0.28025727,713.63,712.7,1.04970438]
[1737062808073,0.28025727,713.63,712.71,1.04970438]
[1737062809276,0.28025727,713.63,712.7,1.04970438]
[1737062810176,0.28025727,713.63,712.69,1.04970438]
[1737062810977,0.28025727,713.63,712.68,1.04970438]
[1737062811878,0.28025727,713.63,712.68,2.06570438]
[1737062812979,0.28025727,713.63,712.68,1.016]
[1737062814182,0.28025727,713.63,712.71,1.04970438]
[1737062815510,0.28025727,713.63,712.68,1.016]
[1737062817198,0.28025727,713.63,712.71,1.04950248]
[1737062817989,0.28025727,713.63,712.7,1.04950248]
[1737062819093,0.28025727,713.63,712.72,1.04950248]
[1737062820874,0.28025727,713.63,712.71,1.04950248]
[1737062821680,0.28025727,713.63,712.7,1.04950248]
[1737062822580,0.28025727,713.63,712.68,1.016]
[1737062825079,0.28025727,713.63,712.71,1.04950248]
[1737062827181,0.28025727,713.63,712.68,1.016]
[1737062827182,0.28025727,713.63,712.72,1.04950248]
[1737062828578,0.28025727,713.63,712.69,1.04950248]
[1737062829380,0.28025727,713.63,712.68,1.016]
[1737062830382,1.04420547,714.46,712.68,1.016]
[1737062830581,0.27993953,714.44,712.68,1.016]
[1737062831482,0.27993953,714.44,712.7,1.04950248]
[1737062832282,0.27993953,714.44,712.68,1.04950248]
[1737062832882,0.27993953,714.44,712.68,2.17150248]
[1737062834079,0.27993953,714.44,712.68,1.122]
[1737062839381,0.27993953,714.44,712.68,2.17150248]
[1737062839787,0.27993953,714.44,712.69,0.2576816]
[1737062840081,0.27993953,714.44,712.68,2.17150248]
[1737062840282,0.27993953,714.44,712.69,0.25767911]
[1737062840485,1.04420547,714.27,712.77,1.04950248]
[1737062840681,0.280014,714.25,712.77,1.04950248]
[1737062841686,0.280014,714.25,712.81,1.04950248]
[1737062842386,0.280014,714.25,712.82,1.04950248]
[1737062843682,0.280014,714.25,712.73,1.04950248]
[1737062846088,0.280014,714.25,712.71,1.04950248]
[1737062847289,0.280014,714.25,712.7,1.04950248]
[1737062848191,0.280014,714.25,712.68,2.17150248]
[1737062849110,0.280014,714.25,712.69,1.04950248]
[1737062850011,0.280014,714.25,712.68,1.122]
[1737062852493,0.280014,714.25,712.68,2.17150248]
[1737062854289,0.280014,714.25,712.76,1.04950248]
[1737062855492,0.280014,714.25,712.75,1.04950248]
[1737062856096,0.280014,714.25,712.75,2.16250248]
[1737062856596,0.280014,714.25,712.75,1.113]
[1737062857492,0.280014,714.25,712.76,1.04950248]
[1737062858396,0.280014,714.25,712.77,1.04950248]
[1737062859399,0.280014,714.25,712.82,1.04950248]
[1737062859991,0.280014,714.25,712.83,1.04950248]
[1737062861300,0.280014,714.25,712.84,1.04950248]
[1737062862400,0.280014,714.25,712.88,1.04950248]
[1737062863401,1.32421947,714.25,712.89,1.04950248]
[1737062864600,1.32421947,714.25,712.93,1.04950248]
[1737062865405,1.04420547,714.22,712.97,1.04950248]
[1737062866502,1.04420547,714.12,712.97,1.04950248]
[1737062867302,1.04420547,714.18,712.95,1.04950248]
[1737062867508,0.28004536,714.17,712.95,1.04950248]
[1737062869401,1.04420547,714.16,712.96,1.04950248]
[1737062869610,0.28005321,714.15,712.96,1.04950248]
[1737062870229,0.28005321,714.15,712.95,1.04950248]
[1737062871623,0.28005321,714.15,712.98,1.04950248]
[1737062873424,0.28005321,714.15,712.75,1.113]
[1737062873425,0.28005321,714.15,712.99,1.04950248]
[1737062875006,0.28005321,714.15,713.0,1.04950248]
[1737062876113,0.28005321,714.15,713.01,1.04950248]
[1737062876311,1.04420547,714.13,713.01,1.04950248]
[1737062877307,1.04420547,714.13,713.0,1.04950248]
[1737062878413,0.28005321,714.15,712.98,1.04950248]
[1737062879215,0.28005321,714.15,712.97,1.04950248]
[1737062880307,0.28005321,714.15,712.98,1.04950248]
[1737062881312,0.28005321,714.15,712.98,2.09350248]
[1737062883111,0.28005321,714.15,712.99,1.04950248]
[1737062885518,0.28005321,714.15,713.0,1.04950248]
[1737062887320,0.28005321,714.15,712.98,1.044]
[1737062929550,0.28005321,714.15,713.01,1.04950248]
[1737062930652,0.28005321,714.15,713.02,1.04950248]
[1737062931047,0.28005321,714.15,713.02,2.01150248]
[1737062931948,0.28005321,714.15,713.02,0.962]
[1737062941053,0.28005321,714.15,713.09,1.04950248]
[1737062941858,0.28005321,714.15,713.1,1.04950248]
[1737062942656,0.28005321,714.15,713.09,1.04950248]
[1737062943558,0.28005321,714.15,713.02,2.01150248]
[1737062946458,0.28005321,714.15,713.02,0.962]
[1737062968684,1.04420547,714.12,713.02,0.962]
[1737062968876,0.28006889,714.11,713.02,0.962]
[1737063000504,1.04420547,714.04,713.02,0.962]
[1737063002808,1.04420547,714.05,713.02,2.01150248]
[1737063003907,1.04420547,714.07,713.02,2.01150248]
[1737063004106,1.04420547,714.07,713.05,1.04950248]
[1737063004902,0.28006889,714.11,713.07,1.04950248]
[1737063005404,0.28006889,714.11,713.07,2.11550248]
[1737063006202,0.28006889,714.11,713.07,1.066]
[1737063060035,0.28006889,714.11,713.08,1.04950248]
[1737063061142,0.28006889,714.11,712.87,1.04950248]
[1737063061143,0.28006889,714.11,713.01,1.04950248]
[1737063061441,0.28006889,714.11,713.01,2.17150248]
[1737063062242,0.28006889,714.11,713.03,1.04950248]
[1737063063341,0.28006889,714.11,713.04,1.04950248]
[1737063064444,0.28006889,714.11,713.01,1.122]
[1737063069951,0.28006889,714.11,713.14,1.04912953]
[1737063072744,0.28006889,714.11,713.12,1.04912953]
[1737063073450,0.28006889,714.11,713.1,1.04912953]
[1737063074948,0.28006889,714.11,713.06,1.04912953]
[1737063075751,0.28006889,714.11,713.08,1.04912953]
[1737063076554,0.28006889,714.11,712.55,1.25895544]
[1737063076555,0.28006889,714.11,713.07,1.04912953]
[1737063077359,0.28006889,714.11,713.08,1.04912953]
[1737063077752,0.28006889,714.11,713.08,1.95212953]
[1737063078148,0.28006889,714.11,713.08,0.903]
[1737063100572,0.28006889,714.11,713.12,1.04912953]
[1737063101674,0.28006889,714.11,713.09,1.04912953]
[1737063101972,0.28006889,714.11,713.09,2.17012953]
[1737063102366,0.28006889,714.11,713.09,1.121]
[1737063107777,0.28006889,714.11,713.09,2.17012953]
[1737063108778,0.28006889,714.11,713.14,1.04912953]
[1737063110777,0.28006889,714.11,713.12,1.04912953]
[1737063111576,0.28006889,714.11,713.09,1.121]
[1737063111577,0.28006889,714.11,713.13,1.04912953]
[1737063112573,0.28006889,714.11,713.1,1.04912953]
[1737063113273,0.28006889,714.11,713.09,1.121]
[1737063246559,1.04148017,714.09,713.09,1.121]
[1737063246855,0.28008066,714.08,713.09,1.121]
[1737063250855,1.04148017,714.07,713.09,1.121]
[1737063251460,1.32156867,714.06,713.09,1.121]
[1737063251859,0.28009243,714.05,713.09,1.121]
[1737063252560,1.04148017,714.03,713.09,1.121]
[1737063252860,0.28010419,714.02,713.09,1.121]
[1737063253362,1.04148017,714.0,713.09,1.121]
[1737063253663,0.28011596,713.99,713.09,1.121]
[1737063255760,1.04148017,713.9,713.09,1.121]
[1737063256361,0.2801552,713.89,713.09,1.121]
[1737063354539,1.04148017,713.86,713.09,1.121]
[1737063354843,0.2801709,713.85,713.09,1.121]
[1737063359850,0.2801709,713.85,712.24,0.28080422]
[1737063360255,0.2801709,713.85,712.18,1.04831573]
[1737063360948,0.2801709,713.85,712.18,2.16031573]
[1737063361254,1.04148017,713.83,712.18,1.112]
[1737063362250,0.2801709,713.85,712.18,1.112]
[1737063366956,1.464816,713.84,712.18,1.112]
[1737063367764,0.28018267,713.82,712.18,1.112]
[1737063396075,1.0309683,713.58,712.18,1.112]
[1737063396480,0.28028476,713.56,712.18,1.112]
[1737063396681,1.0309683,713.55,712.18,1.112]
[1737063396874,0.28029655,713.53,712.18,1.112]
[1737063400280,1.0309683,713.52,712.18,1.112]
[1737063401280,1.0309683,713.49,712.18,1.112]
[1737063403476,1.0309683,713.5,712.18,1.112]
[1737063404283,1.0309683,713.38,712.18,1.112]
[1737063405483,1.0309683,713.42,712.18,1.112]
[1737063406379,1.0309683,713.43,712.18,1.112]
[1737063406879,0.2803437,713.41,712.18,1.112]
[1737063412677,1.0309683,713.4,712.18,1.112]
[1737063412882,0.28035549,713.38,712.18,1.112]
[1737063413479,1.0309683,713.36,712.18,1.112]
[1737063413678,0.28037121,713.34,712.18,1.112]
[1737063414484,1.31133951,713.34,712.18,1.112]
[1737063415680,1.0309683,713.23,712.18,1.112]
[1737063415880,0.28042231,713.21,712.18,1.112]
[1737063419185,1.0309683,713.19,712.18,1.112]
[1737063419586,0.28043804,713.17,712.18,1.112]
[1737063440604,1.0309683,713.03,712.18,1.112]
[1737063440905,0.28049704,713.02,712.18,1.112]
[1737063441603,1.0309683,713.01,712.18,1.112]
[1737063441804,0.2805049,713.0,712.18,1.112]
[1737063447203,1.0309683,712.99,712.18,1.112]
[1737063447505,0.28051277,712.98,712.18,1.112]
[1737063448507,1.0309683,712.97,712.18,1.112]
[1737063448701,0.28052064,712.96,712.18,1.112]
[1737063450508,1.31148894,712.96,712.18,1.112]
[1737063451408,0.28052064,712.96,712.18,1.112]
[1737063490247,0.28052064,712.96,712.18,1.112]
[1737063560805,1.0309683,713.69,712.18,1.112]
[1737063561103,0.28024156,713.67,712.18,1.112]
[1737063565813,1.0309683,713.65,712.18,1.112]
[1737063567110,0.28024156,713.67,712.18,1.112]
[1737063590122,1.31120986,713.67,712.18,1.112]
[1737063591227,1.0309683,713.65,712.18,1.112]
[1737063591525,0.28025334,713.64,712.18,1.112]
[1737063592422,1.0309683,713.61,712.18,2.15412992]
[1737063592626,0.28026905,713.6,712.18,2.15412992]
[1737063593326,0.28026905,713.6,712.18,1.112]
[1737063594523,0.28026905,713.6,712.2,1.04212992]
[1737063595326,0.28026905,713.6,711.79,1.04212992]
[1737063595525,0.28026905,713.6,711.8,0.2809778]
[1737063596025,0.28026905,713.6,711.8,1.4039778]
[1737063597227,0.28026905,713.6,711.8,2.44610772]
[1737063599128,0.28026905,713.6,711.81,1.04212992]
[1737063599329,0.28026905,713.6,711.82,0.2809699]
[1737063600824,0.28026905,713.6,711.83,0.25795116]
[1737063601022,0.28026905,713.6,711.84,0.28096201]
[1737063601226,0.28026905,713.6,711.85,0.25795116]
[1737063601426,0.28026905,713.6,711.86,0.28095412]
[1737063601727,0.28026905,713.6,711.87,0.25795116]
[1737063601928,0.28026905,713.6,711.88,0.28094622]
[1737063602329,1.0309683,713.4,712.17,1.04212992]
[1737063602628,0.28035156,713.39,712.17,1.04212992]
[1737063603530,0.28035156,713.39,712.2,1.04212992]
[1737063604428,0.28035156,713.39,712.14,1.04212992]
[1737063606430,0.28035156,713.39,712.15,1.04212992]
[1737063610333,0.28035156,713.39,712.16,1.04212992]
[1737063613437,0.28035156,713.39,712.24,1.04212992]
[1737063614337,0.28035156,713.39,712.21,1.04212992]
[1737063615337,0.28035156,713.39,712.2,1.04212992]
[1737063618038,0.28035156,713.39,712.17,1.04212992]
[1737063619739,0.28035156,713.39,712.19,1.04212992]
[1737063620137,0.28035156,713.39,712.19,2.02512992]
[1737063620841,0.28035156,713.39,712.19,0.983]
[1737063623036,0.28035156,713.39,712.2,1.04212992]
[1737063623844,0.28035156,713.39,712.19,0.983]
[1737063627845,0.28035156,713.39,712.19,2.02512992]
[1737063628941,0.28035156,713.39,712.19,0.983]
[1737063629947,0.28035156,713.39,712.19,2.02512992]
[1737063630849,0.28035156,713.39,712.23,1.04212992]
[1737063631950,0.28035156,713.39,712.19,0.983]
[1737063631951,0.28035156,713.39,712.27,1.04212992]
[1737063632747,0.28035156,713.39,712.26,1.04212992]
[1737063633551,0.28035156,713.39,712.27,1.04212992]
[1737063634350,0.28035156,713.39,712.3,1.04212992]
[1737063637649,0.28035156,713.39,712.31,1.04212992]
[1737063638453,0.28035156,713.39,712.32,1.04212992]
[1737063640356,0.28035156,713.39,712.32,1.91612992]
[1737063641058,0.28035156,713.39,712.32,0.874]
[1737063641957,0.28035156,713.39,712.33,1.04212992]
[1737063646462,0.28035156,713.39,712.32,1.91612992]
[1737063648064,0.28035156,713.39,712.33,1.04212992]
[1737063650259,0.28035156,713.39,712.34,1.04212992]
[1737063651164,0.28035156,713.39,712.35,1.04212992]
[1737063652068,0.28035156,713.39,712.36,1.04212992]
[1737063652665,0.28035156,713.39,712.36,1.97612992]
[1737063656765,0.28035156,713.39,712.4,1.04212992]
[1737063657765,0.28035156,713.39,712.36,0.934]
[1737063667474,0.28035156,713.39,712.47,1.04212992]
[1737063668475,0.28035156,713.39,712.44,1.04212992]
[1737063669475,0.28035156,713.39,712.43,1.04212992]
[1737063669976,0.28035156,713.39,712.41,1.04212992]
[1737063670776,0.28035156,713.39,712.36,0.934]
[1737063691991,0.28035156,713.39,712.37,1.04212992]
[1737063692795,0.28035156,713.39,712.34,1.04212992]
[1737063693495,0.28035156,713.39,712.34,1.123]
[1737063696294,0.28035156,713.39,712.34,2.16512992]
[1737063699898,0.28035156,713.39,712.36,1.04212992]
[1737063702403,0.28035156,713.39,712.38,1.04212992]
[1737063704002,0.28035156,713.39,712.39,1.04212992]
[1737063705406,0.28035156,713.39,712.36,1.04212992]
[1737063706407,0.28035156,713.39,712.34,1.123]
[1737063759644,0.28035156,713.39,712.34,2.16512992]
[1737063760545,0.28035156,713.39,712.35,1.04212992]
[1737063761345,0.28035156,713.39,712.38,1.04212992]
[1737063761944,0.28035156,713.39,712.38,1.92112992]
[1737063762349,0.28035156,713.39,712.38,0.879]
[1737063779363,0.28035156,713.39,712.38,1.92112992]
[1737063780270,0.28035156,713.39,712.38,0.879]
[1737063787370,0.28035156,713.39,712.38,1.92112992]
[1737063788174,0.28035156,713.39,712.39,1.04212992]
[1737063788677,1.0309683,714.07,712.39,1.04212992]
[1737063788976,0.28009243,714.05,712.39,1.04212992]
[1737063789176,0.28009243,714.05,712.4,1.29991426]
[1737063789378,0.28009243,714.05,712.41,0.25778434]
[1737063789575,0.28009243,714.05,712.41,1.37978434]
[1737063789775,0.28009243,714.05,712.42,0.25778434]
[1737063790272,0.28009243,714.05,712.51,1.04212992]
[1737063791076,0.28009243,714.05,712.52,1.04212992]
[1737063793070,0.28009243,714.05,712.51,1.04212992]
[1737063794973,0.28009243,714.05,712.49,1.04212992]
[1737063795977,0.28009243,714.05,712.51,1.04212992]
[1737063797274,0.28009243,714.05,712.5,1.04212992]
[1737063798477,0.28009243,714.05,712.41,1.122]
[1737063798478,0.28009243,714.05,712.48,1.04212992]
[1737063799375,0.28009243,714.05,712.47,1.04212992]
[1737063800380,0.28009243,714.05,712.48,0.25777494]
[1737063800573,0.28009243,714.05,712.49,0.25777494]
[1737063800779,0.28009243,714.05,712.5,0.25777494]
[1737063800977,0.28009243,714.05,712.51,0.25777494]
[1737063801178,0.28009243,714.05,712.46,1.04212992]
[1737063801375,1.0309683,714.04,712.5,1.04212992]
[1737063801575,1.0309683,714.04,712.51,0.257774]
[1737063801775,0.28010027,714.03,712.51,1.135774]
[1737063801976,0.28010027,714.03,712.51,0.878]
[1737063802179,0.28010027,714.03,712.52,0.25777539]
[1737063802482,0.28010027,714.03,712.51,0.878]